Workbook

Sheet Chi phí dự kiến
B2: BIỂU MẪU SỐ 04/ĐGTĐ-SCM. TÍNH CHI PHÍ TUÂN THỦ THỦ TỤC HÀNH CHÍNH TRONG DỰ ÁN, DỰ THẢO VĂN BẢN
B5: BỘ CÔNG AN | I5: Biểu mẫu 04/ĐGTĐ-SCM
B8: CHI PHÍ TUÂN THỦ THỦ TỤC HÀNH CHÍNH TRONG DỰ ÁN, DỰ THẢO
A10: TÊN DỰ THẢO VĂN BẢN: LUẬT AN NINH DỮ LIỆU
A12: THỦ TỤC HÀNH CHÍNH 1: Đăng ký, khai báo Danh mục dữ liệu quốc gia và thẩm định an ninh hệ thống, đầu tư, chuyển giao công nghệ
A13: 1.a | B13: (Đăng ký, khai báo Danh mục dữ liệu quốc gia)
A14: I. | B14: CHI PHÍ THỰC HIỆN TTHC DỰ KIẾN BAN HÀNH MỚI
A16: STT | B16: Các công việc khi thực hiện TTHC | C16: Các hoạt động/ cách thức thực hiện cụ thể | D16: Thời gian thực hiện (giờ) | E16: Mức TNBQ/ 01 giờ làm việc (đồng) | F16: Mức chi phí thuê tư vấn, dịch vụ (đồng) | G16: Mức phí, lệ phí, chi phí khác (đồng) | H16: Số lần thực hiện/ 01 năm | I16: Số lượng đối tượng tuân thủ/01 năm | J16: Chi phí thực hiện TTHC (đồng) | K16: Tổng chi phí thực hiện TTHC/ 01 năm (đồng) | L16: Ghi chú
A17: 1 | B17: Chuẩn bị hồ sơ
B18: Cơ quan, tổ chức, cá nhân xử lý dữ liệu thuộc Danh mục kiểm kê, phân loại và khai báo với Bộ Công an | C18: Chuẩn bị hồ sơ | D18: 4 | E18: 58228 | G18: 0 | H18: 1 | I18: 5000 | J18: =G18+F18+(D18*E18) -> 232912 | K18: =J18*I18*H18 -> 1164560000
A19: 2 | B19: Nộp hồ sơ | C19: Trực tiếp | D19: 0.5 | E19: 58228 | G19: 0 | H19: 1 | I19: 5000 | J19: 29114 | K19: 145570000
C20: Bưu chính | D20: 0 | E20: 58228 | G20: 0 | H20: 1 | I20: 0 | J20: 0 | K20: 0
C21: Điện tử | D21: 0.25 | E21: 58228 | G21: 0 | H21: 1 | I21: 5000 | J21: 14557 | K21: 72785000
A22: 3 | B22: Nộp phí, lệ phí, chi phí khác | E22: 58228 | G22: 0 | H22: 1 | I22: 5000 | J22: 0 | K22: 0
A23: 3.1 | B23: Phí | D23: 0 | E23: 58228 | G23: 0 | H23: 1 | I23: 5000 | J23: 0 | K23: 0
A24: 3.2 | B24: Lệ phí | D24: 0 | E24: 58228 | G24: 0 | H24: 1 | I24: 5000 | J24: 0 | K24: 0
A25: 3.3 | B25: Chi phí khác | D25: 0 | E25: 58228 | G25: 0 | H25: 1 | I25: 5000 | J25: 0 | K25: 0
A26: 4 | B26: Chuẩn bị, phục vụ việc kiểm tra, đánh giá của cơ quan có thẩm quyền (nếu có) | D26: 0 | E26: 58228 | G26: 0 | H26: 1 | I26: 5000 | J26: 0 | K26: 0
A27: 5 | B27: Công việc khác (nếu có) | D27: 0 | E27: 58228 | G27: 0 | H27: 1 | I27: 5000 | J27: 0 | K27: 0
A28: 6 | B28: Nhận kết quả | C28: Trực tiếp | D28: 0 | E28: 58228 | G28: 0 | H28: 1 | I28: 5000 | J28: 0 | K28: 0
C29: Bưu chính | D29: 0 | E29: 58228 | G29: 0 | H29: 1 | I29: 0 | J29: 0 | K29: 0
C30: Điện tử | D30: 0.1 | E30: 58228 | G30: 0 | H30: 1 | I30: 5000 | J30: 5822.8 | K30: 29114000
B31: TỔNG 1.a | F31: =SUM(F17:F27) -> 0 | G31: =SUM(G17:G27) -> 0 | J31: =SUM(J17:J30) -> 282405.8 | K31: =SUM(K17:K30) -> 1412029000
A32: Ghi chú giả định số liệu: Doanh nghiệp siêu nhỏ, nhỏ và vừa không xử lý dữ liệu quy mô lớn được miễn trừ theo Điều 13 (Khoản 3) của dự thảo Luật.
A34: 1.b | B34: (Thẩm định an ninh hệ thống, hoạt động đầu tư và chuyển giao công nghệ)
A35: I. | B35: CHI PHÍ THỰC HIỆN TTHC DỰ KIẾN BAN HÀNH MỚI
A37: STT | B37: Các công việc khi thực hiện TTHC | C37: Các hoạt động/ cách thức thực hiện cụ thể | D37: Thời gian thực hiện (giờ) | E37: Mức TNBQ/ 01 giờ làm việc (đồng) | F37: Mức chi phí thuê tư vấn, dịch vụ (đồng) | G37: Mức phí, lệ phí, chi phí khác (đồng) | H37: Số lần thực hiện/ 01 năm | I37: Số lượng đối tượng tuân thủ/01 năm | J37: Chi phí thực hiện TTHC (đồng) | K37: Tổng chi phí thực hiện TTHC/ 01 năm (đồng) | L37: Ghi chú
A38: 1 | B38: Chuẩn bị hồ sơ
B39: Chủ đầu tư lập hồ sơ mô tả hệ thống, phương án bảo đảm an ninh, tài liệu kỹ thuật dự án đầu tư, chuyển giao công nghệ | C39: Chuẩn bị hồ sơ | D39: 32 | E39: 58228 | F39: 8000000 | G39: 0 | H39: 1 | I39: 800 | J39: =G39+F39+(D39*E39) -> 9863296 | K39: =J39*I39*H39 -> 7890636800
A40: 2 | B40: Nộp hồ sơ | C40: Trực tiếp | D40: 0.5 | E40: 58228 | G40: 0 | H40: 1 | I40: 800 | J40: 29114 | K40: 23291200
C41: Bưu chính | D41: 0 | E41: 58228 | G41: 0 | H41: 1 | I41: 0 | J41: 0 | K41: 0
C42: Điện tử | D42: 0.25 | E42: 58228 | G42: 0 | H42: 1 | I42: 800 | J42: 14557 | K42: 11645600
A43: 3 | B43: Nộp phí, lệ phí, chi phí khác | E43: 58228 | G43: 0 | H43: 1 | I43: 800 | J43: 0 | K43: 0
A44: 3.1 | B44: Phí | D44: 0 | E44: 58228 | G44: 0 | H44: 1 | I44: 800 | J44: 0 | K44: 0
A45: 3.2 | B45: Lệ phí | D45: 0 | E45: 58228 | G45: 0 | H45: 1 | I45: 800 | J45: 0 | K45: 0
A46: 3.3 | B46: Chi phí khác | D46: 0 | E46: 58228 | G46: 0 | H46: 1 | I46: 800 | J46: 0 | K46: 0
A47: 4 | B47: Chuẩn bị, phục vụ việc kiểm tra, đánh giá của cơ quan có thẩm quyền (nếu có) | D47: 0 | E47: 58228 | G47: 0 | H47: 1 | I47: 800 | J47: 0 | K47: 0
A48: 5 | B48: Công việc khác (nếu có) | D48: 0 | E48: 58228 | G48: 0 | H48: 1 | I48: 800 | J48: 0 | K48: 0
A49: 6 | B49: Nhận kết quả | C49: Trực tiếp | D49: 2 | E49: 58228 | G49: 0 | H49: 1 | I49: 800 | J49: 116456 | K49: 93164800
C50: Bưu chính | D50: 0 | E50: 58228 | G50: 0 | H50: 1 | I50: 0 | J50: 0 | K50: 0
C51: Điện tử | D51: 0.1 | E51: 58228 | G51: 0 | H51: 1 | I51: 800 | J51: 5822.8 | K51: 4658240
B52: TỔNG 1.b | F52: =SUM(F38:F48) -> 8000000 | G52: =SUM(G38:G48) -> 0 | J52: =SUM(J38:J51) -> 10029245.8 | K52: =SUM(K38:K51) -> 8023396640
A53: Ghi chú giả định số liệu: Đã tính chi phí thuê tư vấn kỹ thuật, pháp lý chuẩn bị hồ sơ khoảng 8.000.000 đồng/hồ sơ; áp dụng cơ chế thẩm định kép liên thông với an ninh mạng theo Điều 14 để giảm trùng lặp.
B55: TỔNG NHÓM (THỦ TỤC 1) | K55: =K31+K52 -> 9435425640
A57: THỦ TỤC HÀNH CHÍNH 2: Báo cáo đánh giá rủi ro định kỳ, đột xuất và chứng nhận hợp quy sản phẩm, dịch vụ công nghệ an ninh dữ liệu
A58: 2.a | B58: (Báo cáo đánh giá rủi ro an ninh dữ liệu định kỳ, đột xuất)
A59: I. | B59: CHI PHÍ THỰC HIỆN TTHC DỰ KIẾN BAN HÀNH MỚI
A61: STT | B61: Các công việc khi thực hiện TTHC | C61: Các hoạt động/ cách thức thực hiện cụ thể | D61: Thời gian thực hiện (giờ) | E61: Mức TNBQ/ 01 giờ làm việc (đồng) | F61: Mức chi phí thuê tư vấn, dịch vụ (đồng) | G61: Mức phí, lệ phí, chi phí khác (đồng) | H61: Số lần thực hiện/ 01 năm | I61: Số lượng đối tượng tuân thủ/01 năm | J61: Chi phí thực hiện TTHC (đồng) | K61: Tổng chi phí thực hiện TTHC/ 01 năm (đồng) | L61: Ghi chú
A62: 1 | B62: Chuẩn bị hồ sơ
B63: Chủ quản hệ thống thông tin xử lý dữ liệu Cốt lõi, dữ liệu Quan trọng tự tổ chức đánh giá rủi ro, lập báo cáo theo mẫu | C63: Chuẩn bị hồ sơ | D63: 16 | E63: 58228 | G63: 0 | H63: 1 | I63: 2000 | J63: =G63+F63+(D63*E63) -> 931648 | K63: =J63*I63*H63 -> 1863296000
A64: 2 | B64: Nộp hồ sơ | C64: Trực tiếp | D64: 0.5 | E64: 58228 | G64: 0 | H64: 1 | I64: 2000 | J64: 29114 | K64: 58228000
C65: Bưu chính | D65: 0 | E65: 58228 | G65: 0 | H65: 1 | I65: 0 | J65: 0 | K65: 0
C66: Điện tử | D66: 0.25 | E66: 58228 | G66: 0 | H66: 1 | I66: 2000 | J66: 14557 | K66: 29114000
A67: 3 | B67: Nộp phí, lệ phí, chi phí khác | E67: 58228 | G67: 0 | H67: 1 | I67: 2000 | J67: 0 | K67: 0
A68: 3.1 | B68: Phí | D68: 0 | E68: 58228 | G68: 0 | H68: 1 | I68: 2000 | J68: 0 | K68: 0
A69: 3.2 | B69: Lệ phí | D69: 0 | E69: 58228 | G69: 0 | H69: 1 | I69: 2000 | J69: 0 | K69: 0
A70: 3.3 | B70: Chi phí khác | D70: 0 | E70: 58228 | G70: 0 | H70: 1 | I70: 2000 | J70: 0 | K70: 0
A71: 4 | B71: Chuẩn bị, phục vụ việc kiểm tra, đánh giá của cơ quan có thẩm quyền (nếu có) | D71: 0 | E71: 58228 | G71: 0 | H71: 1 | I71: 2000 | J71: 0 | K71: 0
A72: 5 | B72: Công việc khác (nếu có) | D72: 0 | E72: 58228 | G72: 0 | H72: 1 | I72: 2000 | J72: 0 | K72: 0
A73: 6 | B73: Nhận kết quả | C73: Trực tiếp | D73: 0 | E73: 58228 | G73: 0 | H73: 1 | I73: 2000 | J73: 0 | K73: 0
C74: Bưu chính | D74: 0 | E74: 58228 | G74: 0 | H74: 1 | I74: 0 | J74: 0 | K74: 0
C75: Điện tử | D75: 0.1 | E75: 58228 | G75: 0 | H75: 1 | I75: 2000 | J75: 5822.8 | K75: 11645600
B76: TỔNG 2.a | F76: =SUM(F62:F72) -> 0 | G76: =SUM(G62:G72) -> 0 | J76: =SUM(J62:J75) -> 981141.8 | K76: =SUM(K62:K75) -> 1962283600
A77: Ghi chú giả định số liệu: Ước tính khoảng 2.000 cơ quan, tổ chức thuộc diện xử lý dữ liệu Cốt lõi/Quan trọng trên toàn quốc phải thực hiện hằng năm.
A79: 2.b | B79: (Cấp Chứng nhận hợp quy sản phẩm, dịch vụ công nghệ an ninh dữ liệu)
A80: I. | B80: CHI PHÍ THỰC HIỆN TTHC DỰ KIẾN BAN HÀNH MỚI
A82: STT | B82: Các công việc khi thực hiện TTHC | C82: Các hoạt động/ cách thức thực hiện cụ thể | D82: Thời gian thực hiện (giờ) | E82: Mức TNBQ/ 01 giờ làm việc (đồng) | F82: Mức chi phí thuê tư vấn, dịch vụ (đồng) | G82: Mức phí, lệ phí, chi phí khác (đồng) | H82: Số lần thực hiện/ 01 năm | I82: Số lượng đối tượng tuân thủ/01 năm | J82: Chi phí thực hiện TTHC (đồng) | K82: Tổng chi phí thực hiện TTHC/ 01 năm (đồng) | L82: Ghi chú
A83: 1 | B83: Chuẩn bị hồ sơ
B84: Doanh nghiệp chuẩn bị hồ sơ kỹ thuật, kết quả thử nghiệm sản phẩm để đề nghị cấp chứng nhận hợp quy | C84: Chuẩn bị hồ sơ | D84: 24 | E84: 58228 | F84: 5000000 | G84: 0 | H84: 1 | I84: 150 | J84: =G84+F84+(D84*E84) -> 6397472 | K84: =J84*I84*H84 -> 959620800
A85: 2 | B85: Nộp hồ sơ | C85: Trực tiếp | D85: 0.5 | E85: 58228 | G85: 0 | H85: 1 | I85: 150 | J85: 29114 | K85: 4367100
C86: Bưu chính | D86: 0 | E86: 58228 | G86: 0 | H86: 1 | I86: 0 | J86: 0 | K86: 0
C87: Điện tử | D87: 0.25 | E87: 58228 | G87: 0 | H87: 1 | I87: 150 | J87: 14557 | K87: 2183550
A88: 3 | B88: Nộp phí, lệ phí, chi phí khác | E88: 58228 | G88: 0 | H88: 1 | I88: 150 | J88: 0 | K88: 0
A89: 3.1 | B89: Phí | D89: 0 | E89: 58228 | G89: 0 | H89: 1 | I89: 150 | J89: 0 | K89: 0
A90: 3.2 | B90: Lệ phí | D90: 0 | E90: 58228 | G90: 0 | H90: 1 | I90: 150 | J90: 0 | K90: 0
A91: 3.3 | B91: Chi phí khác | D91: 0 | E91: 58228 | G91: 0 | H91: 1 | I91: 150 | J91: 0 | K91: 0
A92: 4 | B92: Chuẩn bị, phục vụ việc kiểm tra, đánh giá của cơ quan có thẩm quyền (nếu có) | D92: 0 | E92: 58228 | G92: 0 | H92: 1 | I92: 150 | J92: 0 | K92: 0
A93: 5 | B93: Công việc khác (nếu có) | D93: 0 | E93: 58228 | G93: 0 | H93: 1 | I93: 150 | J93: 0 | K93: 0
A94: 6 | B94: Nhận kết quả | C94: Trực tiếp | D94: 1 | E94: 58228 | G94: 0 | H94: 1 | I94: 150 | J94: 58228 | K94: 8734200
C95: Bưu chính | D95: 0 | E95: 58228 | G95: 0 | H95: 1 | I95: 0 | J95: 0 | K95: 0
C96: Điện tử | D96: 0.1 | E96: 58228 | G96: 0 | H96: 1 | I96: 150 | J96: 5822.8 | K96: 873420
B97: TỔNG 2.b | F97: =SUM(F83:F93) -> 5000000 | G97: =SUM(G83:G93) -> 0 | J97: =SUM(J83:J96) -> 6505193.8 | K97: =SUM(K83:K96) -> 975779070
A98: Ghi chú giả định số liệu: Đã tính chi phí thuê tổ chức thử nghiệm kỹ thuật độc lập (khoảng 5.000.000 đồng/hồ sơ); mức phí, lệ phí thẩm định cụ thể do Bộ Tài chính quy định.
B100: TỔNG NHÓM (THỦ TỤC 2) | K100: =K76+K97 -> 2938062670
A102: THỦ TỤC HÀNH CHÍNH 3: Cấp phép giao dịch dữ liệu Cốt lõi, Quan trọng trong trường hợp đặc biệt
A103: 3 | B103: (Cấp phép giao dịch, mua bán dữ liệu Cốt lõi, Quan trọng trong trường hợp đặc biệt)
A104: I. | B104: CHI PHÍ THỰC HIỆN TTHC DỰ KIẾN BAN HÀNH MỚI
A106: STT | B106: Các công việc khi thực hiện TTHC | C106: Các hoạt động/ cách thức thực hiện cụ thể | D106: Thời gian thực hiện (giờ) | E106: Mức TNBQ/ 01 giờ làm việc (đồng) | F106: Mức chi phí thuê tư vấn, dịch vụ (đồng) | G106: Mức phí, lệ phí, chi phí khác (đồng) | H106: Số lần thực hiện/ 01 năm | I106: Số lượng đối tượng tuân thủ/01 năm | J106: Chi phí thực hiện TTHC (đồng) | K106: Tổng chi phí thực hiện TTHC/ 01 năm (đồng) | L106: Ghi chú
A107: 1 | B107: Chuẩn bị hồ sơ
B108: Tổ chức, cá nhân lập hồ sơ đề nghị, kèm thỏa thuận giao dịch dự kiến và đánh giá tác động an ninh liên quan | C108: Chuẩn bị hồ sơ | D108: 40 | E108: 58228 | F108: 10000000 | G108: 0 | H108: 1 | I108: 10 | J108: =G108+F108+(D108*E108) -> 12329120 | K108: =J108*I108*H108 -> 123291200
A109: 2 | B109: Nộp hồ sơ | C109: Trực tiếp | D109: 0.5 | E109: 58228 | G109: 0 | H109: 1 | I109: 10 | J109: 29114 | K109: 291140
C110: Bưu chính | D110: 0 | E110: 58228 | G110: 0 | H110: 1 | I110: 0 | J110: 0 | K110: 0
C111: Điện tử | D111: 0.25 | E111: 58228 | G111: 0 | H111: 1 | I111: 10 | J111: 14557 | K111: 145570
A112: 3 | B112: Nộp phí, lệ phí, chi phí khác | E112: 58228 | G112: 0 | H112: 1 | I112: 10 | J112: 0 | K112: 0
A113: 3.1 | B113: Phí | D113: 0 | E113: 58228 | G113: 0 | H113: 1 | I113: 10 | J113: 0 | K113: 0
A114: 3.2 | B114: Lệ phí | D114: 0 | E114: 58228 | G114: 0 | H114: 1 | I114: 10 | J114: 0 | K114: 0
A115: 3.3 | B115: Chi phí khác | D115: 0 | E115: 58228 | G115: 0 | H115: 1 | I115: 10 | J115: 0 | K115: 0
A116: 4 | B116: Chuẩn bị, phục vụ việc kiểm tra, đánh giá của cơ quan có thẩm quyền (nếu có) | D116: 0 | E116: 58228 | G116: 0 | H116: 1 | I116: 10 | J116: 0 | K116: 0
A117: 5 | B117: Công việc khác (nếu có) | D117: 0 | E117: 58228 | G117: 0 | H117: 1 | I117: 10 | J117: 0 | K117: 0
A118: 6 | B118: Nhận kết quả | C118: Trực tiếp | D118: 2 | E118: 58228 | G118: 0 | H118: 1 | I118: 10 | J118: 116456 | K118: 1164560
C119: Bưu chính | D119: 0 | E119: 58228 | G119: 0 | H119: 1 | I119: 0 | J119: 0 | K119: 0
C120: Điện tử | D120: 0.1 | E120: 58228 | G120: 0 | H120: 1 | I120: 10 | J120: 5822.8 | K120: 58228
B121: TỔNG | F121: =SUM(F107:F117) -> 10000000 | G121: =SUM(G107:G117) -> 0 | J121: =SUM(J107:J120) -> 12495069.8 | K121: =SUM(K107:K120) -> 124950698
A122: Ghi chú giả định số liệu: Thủ tục hiếm gặp, tính chất phức tạp; đã tính chi phí thuê tư vấn pháp lý, kỹ thuật khoảng 10.000.000 đồng/hồ sơ.
A124: THỦ TỤC HÀNH CHÍNH 4: Đăng ký, cấp phép kinh doanh dịch vụ dữ liệu, bao gồm hoạt động môi giới, vận hành sàn giao dịch dữ liệu
A125: 4.a | B125: (Đăng ký hoạt động môi giới, cung cấp sàn giao dịch dữ liệu)
A126: I. | B126: CHI PHÍ THỰC HIỆN TTHC DỰ KIẾN BAN HÀNH MỚI
A128: STT | B128: Các công việc khi thực hiện TTHC | C128: Các hoạt động/ cách thức thực hiện cụ thể | D128: Thời gian thực hiện (giờ) | E128: Mức TNBQ/ 01 giờ làm việc (đồng) | F128: Mức chi phí thuê tư vấn, dịch vụ (đồng) | G128: Mức phí, lệ phí, chi phí khác (đồng) | H128: Số lần thực hiện/ 01 năm | I128: Số lượng đối tượng tuân thủ/01 năm | J128: Chi phí thực hiện TTHC (đồng) | K128: Tổng chi phí thực hiện TTHC/ 01 năm (đồng) | L128: Ghi chú
A129: 1 | B129: Chuẩn bị hồ sơ
B130: Tổ chức chuẩn bị hồ sơ đăng ký, phương án bảo đảm an ninh hệ thống sàn giao dịch | C130: Chuẩn bị hồ sơ | D130: 24 | E130: 58228 | F130: 3000000 | G130: 0 | H130: 1 | I130: 50 | J130: =G130+F130+(D130*E130) -> 4397472 | K130: =J130*I130*H130 -> 219873600
A131: 2 | B131: Nộp hồ sơ | C131: Trực tiếp | D131: 0.5 | E131: 58228 | G131: 0 | H131: 1 | I131: 50 | J131: 29114 | K131: 1455700
C132: Bưu chính | D132: 0 | E132: 58228 | G132: 0 | H132: 1 | I132: 0 | J132: 0 | K132: 0
C133: Điện tử | D133: 0.25 | E133: 58228 | G133: 0 | H133: 1 | I133: 50 | J133: 14557 | K133: 727850
A134: 3 | B134: Nộp phí, lệ phí, chi phí khác | E134: 58228 | G134: 0 | H134: 1 | I134: 50 | J134: 0 | K134: 0
A135: 3.1 | B135: Phí | D135: 0 | E135: 58228 | G135: 0 | H135: 1 | I135: 50 | J135: 0 | K135: 0
A136: 3.2 | B136: Lệ phí | D136: 0 | E136: 58228 | G136: 0 | H136: 1 | I136: 50 | J136: 0 | K136: 0
A137: 3.3 | B137: Chi phí khác | D137: 0 | E137: 58228 | G137: 0 | H137: 1 | I137: 50 | J137: 0 | K137: 0
A138: 4 | B138: Chuẩn bị, phục vụ việc kiểm tra, đánh giá của cơ quan có thẩm quyền (nếu có) | D138: 0 | E138: 58228 | G138: 0 | H138: 1 | I138: 50 | J138: 0 | K138: 0
A139: 5 | B139: Công việc khác (nếu có) | D139: 0 | E139: 58228 | G139: 0 | H139: 1 | I139: 50 | J139: 0 | K139: 0
A140: 6 | B140: Nhận kết quả | C140: Trực tiếp | D140: 1 | E140: 58228 | G140: 0 | H140: 1 | I140: 50 | J140: 58228 | K140: 2911400
C141: Bưu chính | D141: 0 | E141: 58228 | G141: 0 | H141: 1 | I141: 0 | J141: 0 | K141: 0
C142: Điện tử | D142: 0.1 | E142: 58228 | G142: 0 | H142: 1 | I142: 50 | J142: 5822.8 | K142: 291140
B143: TỔNG 4.a | F143: =SUM(F129:F139) -> 3000000 | G143: =SUM(G129:G139) -> 0 | J143: =SUM(J129:J142) -> 4505193.8 | K143: =SUM(K129:K142) -> 225259690
A144: Ghi chú giả định số liệu: Đã tính chi phí thuê tư vấn xây dựng phương án an ninh hệ thống khoảng 3.000.000 đồng/hồ sơ.
A146: 4.b | B146: (Cấp Giấy chứng nhận đủ điều kiện an ninh, trật tự kinh doanh dịch vụ dữ liệu)
A147: I. | B147: CHI PHÍ THỰC HIỆN TTHC DỰ KIẾN BAN HÀNH MỚI
A149: STT | B149: Các công việc khi thực hiện TTHC | C149: Các hoạt động/ cách thức thực hiện cụ thể | D149: Thời gian thực hiện (giờ) | E149: Mức TNBQ/ 01 giờ làm việc (đồng) | F149: Mức chi phí thuê tư vấn, dịch vụ (đồng) | G149: Mức phí, lệ phí, chi phí khác (đồng) | H149: Số lần thực hiện/ 01 năm | I149: Số lượng đối tượng tuân thủ/01 năm | J149: Chi phí thực hiện TTHC (đồng) | K149: Tổng chi phí thực hiện TTHC/ 01 năm (đồng) | L149: Ghi chú
A150: 1 | B150: Chuẩn bị hồ sơ
B151: Doanh nghiệp chuẩn bị hồ sơ đăng ký kinh doanh có điều kiện, lý lịch tư pháp người chịu trách nhiệm | C151: Chuẩn bị hồ sơ | D151: 16 | E151: 58228 | G151: 0 | H151: 1 | I151: 300 | J151: =G151+F151+(D151*E151) -> 931648 | K151: =J151*I151*H151 -> 279494400
A152: 2 | B152: Nộp hồ sơ | C152: Trực tiếp | D152: 0.5 | E152: 58228 | G152: 0 | H152: 1 | I152: 300 | J152: 29114 | K152: 8734200
C153: Bưu chính | D153: 0 | E153: 58228 | G153: 0 | H153: 1 | I153: 0 | J153: 0 | K153: 0
C154: Điện tử | D154: 0.25 | E154: 58228 | G154: 0 | H154: 1 | I154: 300 | J154: 14557 | K154: 4367100
A155: 3 | B155: Nộp phí, lệ phí, chi phí khác | E155: 58228 | G155: 0 | H155: 1 | I155: 300 | J155: 0 | K155: 0
A156: 3.1 | B156: Phí | D156: 0 | E156: 58228 | G156: 0 | H156: 1 | I156: 300 | J156: 0 | K156: 0
A157: 3.2 | B157: Lệ phí | D157: 0 | E157: 58228 | G157: 0 | H157: 1 | I157: 300 | J157: 0 | K157: 0
A158: 3.3 | B158: Chi phí khác | D158: 0 | E158: 58228 | G158: 0 | H158: 1 | I158: 300 | J158: 0 | K158: 0
A159: 4 | B159: Chuẩn bị, phục vụ việc kiểm tra, đánh giá của cơ quan có thẩm quyền (nếu có) | D159: 0 | E159: 58228 | G159: 0 | H159: 1 | I159: 300 | J159: 0 | K159: 0
A160: 5 | B160: Công việc khác (nếu có) | D160: 0 | E160: 58228 | G160: 0 | H160: 1 | I160: 300 | J160: 0 | K160: 0
A161: 6 | B161: Nhận kết quả | C161: Trực tiếp | D161: 1 | E161: 58228 | G161: 0 | H161: 1 | I161: 300 | J161: 58228 | K161: 17468400
C162: Bưu chính | D162: 0 | E162: 58228 | G162: 0 | H162: 1 | I162: 0 | J162: 0 | K162: 0
C163: Điện tử | D163: 0.1 | E163: 58228 | G163: 0 | H163: 1 | I163: 300 | J163: 5822.8 | K163: 1746840
B164: TỔNG 4.b | F164: =SUM(F150:F160) -> 0 | G164: =SUM(G150:G160) -> 0 | J164: =SUM(J150:J163) -> 1039369.8 | K164: =SUM(K150:K163) -> 311810940
A165: Ghi chú giả định số liệu: Mức phí, lệ phí cụ thể do Bộ Tài chính quy định khi ban hành văn bản hướng dẫn thi hành.
B167: TỔNG NHÓM (THỦ TỤC 4) | K167: =K143+K164 -> 537070630
A169: THỦ TỤC HÀNH CHÍNH 5: Phê duyệt của Thủ tướng Chính phủ đối với trường hợp đặc biệt xử lý dữ liệu Cốt lõi
A170: 5 | B170: (Phê duyệt của Thủ tướng Chính phủ đối với trường hợp đặc biệt xử lý dữ liệu Cốt lõi)
A171: I. | B171: CHI PHÍ THỰC HIỆN TTHC DỰ KIẾN BAN HÀNH MỚI
A173: STT | B173: Các công việc khi thực hiện TTHC | C173: Các hoạt động/ cách thức thực hiện cụ thể | D173: Thời gian thực hiện (giờ) | E173: Mức TNBQ/ 01 giờ làm việc (đồng) | F173: Mức chi phí thuê tư vấn, dịch vụ (đồng) | G173: Mức phí, lệ phí, chi phí khác (đồng) | H173: Số lần thực hiện/ 01 năm | I173: Số lượng đối tượng tuân thủ/01 năm | J173: Chi phí thực hiện TTHC (đồng) | K173: Tổng chi phí thực hiện TTHC/ 01 năm (đồng) | L173: Ghi chú
A174: 1 | B174: Chuẩn bị hồ sơ
B175: Cơ quan chủ quản lập hồ sơ trình Thủ tướng Chính phủ, kèm ý kiến thẩm định của Bộ Công an/Bộ Quốc phòng | C175: Chuẩn bị hồ sơ | D175: 40 | E175: 58228 | G175: 0 | H175: 1 | I175: 5 | J175: =G175+F175+(D175*E175) -> 2329120 | K175: =J175*I175*H175 -> 11645600
A176: 2 | B176: Nộp hồ sơ | C176: Trực tiếp | D176: 0.5 | E176: 58228 | G176: 0 | H176: 1 | I176: 5 | J176: 29114 | K176: 145570
C177: Bưu chính | D177: 0 | E177: 58228 | G177: 0 | H177: 1 | I177: 0 | J177: 0 | K177: 0
C178: Điện tử | D178: 0.25 | E178: 58228 | G178: 0 | H178: 1 | I178: 5 | J178: 14557 | K178: 72785
A179: 3 | B179: Nộp phí, lệ phí, chi phí khác | E179: 58228 | G179: 0 | H179: 1 | I179: 5 | J179: 0 | K179: 0
A180: 3.1 | B180: Phí | D180: 0 | E180: 58228 | G180: 0 | H180: 1 | I180: 5 | J180: 0 | K180: 0
A181: 3.2 | B181: Lệ phí | D181: 0 | E181: 58228 | G181: 0 | H181: 1 | I181: 5 | J181: 0 | K181: 0
A182: 3.3 | B182: Chi phí khác | D182: 0 | E182: 58228 | G182: 0 | H182: 1 | I182: 5 | J182: 0 | K182: 0
A183: 4 | B183: Chuẩn bị, phục vụ việc kiểm tra, đánh giá của cơ quan có thẩm quyền (nếu có) | D183: 0 | E183: 58228 | G183: 0 | H183: 1 | I183: 5 | J183: 0 | K183: 0
A184: 5 | B184: Công việc khác (nếu có) | D184: 0 | E184: 58228 | G184: 0 | H184: 1 | I184: 5 | J184: 0 | K184: 0
A185: 6 | B185: Nhận kết quả | C185: Trực tiếp | D185: 2 | E185: 58228 | G185: 0 | H185: 1 | I185: 5 | J185: 116456 | K185: 582280
C186: Bưu chính | D186: 0 | E186: 58228 | G186: 0 | H186: 1 | I186: 0 | J186: 0 | K186: 0
C187: Điện tử | D187: 0.1 | E187: 58228 | G187: 0 | H187: 1 | I187: 5 | J187: 5822.8 | K187: 29114
B188: TỔNG | F188: =SUM(F174:F184) -> 0 | G188: =SUM(G174:G184) -> 0 | J188: =SUM(J174:J187) -> 2495069.8 | K188: =SUM(K174:K187) -> 12475349
A189: Ghi chú giả định số liệu: Thủ tục áp dụng cho số lượng rất hạn chế trường hợp đặc biệt phục vụ lợi ích tối cao quốc gia.
A191: THỦ TỤC HÀNH CHÍNH 6: Cấp phép tham gia cơ chế thử nghiệm có kiểm soát (Sandbox)
A192: 6 | B192: (Cấp phép tham gia cơ chế thử nghiệm có kiểm soát (Sandbox))
A193: I. | B193: CHI PHÍ THỰC HIỆN TTHC DỰ KIẾN BAN HÀNH MỚI
A195: STT | B195: Các công việc khi thực hiện TTHC | C195: Các hoạt động/ cách thức thực hiện cụ thể | D195: Thời gian thực hiện (giờ) | E195: Mức TNBQ/ 01 giờ làm việc (đồng) | F195: Mức chi phí thuê tư vấn, dịch vụ (đồng) | G195: Mức phí, lệ phí, chi phí khác (đồng) | H195: Số lần thực hiện/ 01 năm | I195: Số lượng đối tượng tuân thủ/01 năm | J195: Chi phí thực hiện TTHC (đồng) | K195: Tổng chi phí thực hiện TTHC/ 01 năm (đồng) | L195: Ghi chú
A196: 1 | B196: Chuẩn bị hồ sơ
B197: Tổ chức, doanh nghiệp lập hồ sơ đăng ký, thuyết minh kỹ thuật giải pháp và phương án kiểm soát rủi ro | C197: Chuẩn bị hồ sơ | D197: 24 | E197: 58228 | F197: 4000000 | G197: 0 | H197: 1 | I197: 100 | J197: =G197+F197+(D197*E197) -> 5397472 | K197: =J197*I197*H197 -> 539747200
A198: 2 | B198: Nộp hồ sơ | C198: Trực tiếp | D198: 0.5 | E198: 58228 | G198: 0 | H198: 1 | I198: 100 | J198: 29114 | K198: 2911400
C199: Bưu chính | D199: 0 | E199: 58228 | G199: 0 | H199: 1 | I199: 0 | J199: 0 | K199: 0
C200: Điện tử | D200: 0.25 | E200: 58228 | G200: 0 | H200: 1 | I200: 100 | J200: 14557 | K200: 1455700
A201: 3 | B201: Nộp phí, lệ phí, chi phí khác | E201: 58228 | G201: 0 | H201: 1 | I201: 100 | J201: 0 | K201: 0
A202: 3.1 | B202: Phí | D202: 0 | E202: 58228 | G202: 0 | H202: 1 | I202: 100 | J202: 0 | K202: 0
A203: 3.2 | B203: Lệ phí | D203: 0 | E203: 58228 | G203: 0 | H203: 1 | I203: 100 | J203: 0 | K203: 0
A204: 3.3 | B204: Chi phí khác | D204: 0 | E204: 58228 | G204: 0 | H204: 1 | I204: 100 | J204: 0 | K204: 0
A205: 4 | B205: Chuẩn bị, phục vụ việc kiểm tra, đánh giá của cơ quan có thẩm quyền (nếu có) | D205: 0 | E205: 58228 | G205: 0 | H205: 1 | I205: 100 | J205: 0 | K205: 0
A206: 5 | B206: Công việc khác (nếu có) | D206: 0 | E206: 58228 | G206: 0 | H206: 1 | I206: 100 | J206: 0 | K206: 0
A207: 6 | B207: Nhận kết quả | C207: Trực tiếp | D207: 1 | E207: 58228 | G207: 0 | H207: 1 | I207: 100 | J207: 58228 | K207: 5822800
C208: Bưu chính | D208: 0 | E208: 58228 | G208: 0 | H208: 1 | I208: 0 | J208: 0 | K208: 0
C209: Điện tử | D209: 0.1 | E209: 58228 | G209: 0 | H209: 1 | I209: 100 | J209: 5822.8 | K209: 582280
B210: TỔNG | F210: =SUM(F196:F206) -> 4000000 | G210: =SUM(G196:G206) -> 0 | J210: =SUM(J196:J209) -> 5505193.8 | K210: =SUM(K196:K209) -> 550519380
A211: Ghi chú giả định số liệu: Đã tính chi phí thuê tư vấn xây dựng thuyết minh kỹ thuật khoảng 4.000.000 đồng/hồ sơ.
A213: THỦ TỤC HÀNH CHÍNH 7: Thẩm định, cấp văn bản chấp thuận an ninh khi chuyển dữ liệu Quan trọng, Cốt lõi ra nước ngoài
A214: 7.a | B214: (Thẩm định, cấp văn bản chấp thuận an ninh khi chuyển dữ liệu Quan trọng, Cốt lõi ra nước ngoài)
A215: I. | B215: CHI PHÍ THỰC HIỆN TTHC DỰ KIẾN BAN HÀNH MỚI
A217: STT | B217: Các công việc khi thực hiện TTHC | C217: Các hoạt động/ cách thức thực hiện cụ thể | D217: Thời gian thực hiện (giờ) | E217: Mức TNBQ/ 01 giờ làm việc (đồng) | F217: Mức chi phí thuê tư vấn, dịch vụ (đồng) | G217: Mức phí, lệ phí, chi phí khác (đồng) | H217: Số lần thực hiện/ 01 năm | I217: Số lượng đối tượng tuân thủ/01 năm | J217: Chi phí thực hiện TTHC (đồng) | K217: Tổng chi phí thực hiện TTHC/ 01 năm (đồng) | L217: Ghi chú
A218: 1 | B218: Chuẩn bị hồ sơ
B219: Tổ chức lập hồ sơ đề nghị, kèm hợp đồng/thỏa thuận chuyển dữ liệu và đánh giá tác động an ninh dữ liệu xuyên biên giới | C219: Chuẩn bị hồ sơ | D219: 24 | E219: 58228 | F219: 5000000 | G219: 0 | H219: 1 | I219: 200 | J219: =G219+F219+(D219*E219) -> 6397472 | K219: =J219*I219*H219 -> 1279494400
A220: 2 | B220: Nộp hồ sơ | C220: Trực tiếp | D220: 0.5 | E220: 58228 | G220: 0 | H220: 1 | I220: 200 | J220: 29114 | K220: 5822800
C221: Bưu chính | D221: 0 | E221: 58228 | G221: 0 | H221: 1 | I221: 0 | J221: 0 | K221: 0
C222: Điện tử | D222: 0.25 | E222: 58228 | G222: 0 | H222: 1 | I222: 200 | J222: 14557 | K222: 2911400
A223: 3 | B223: Nộp phí, lệ phí, chi phí khác | E223: 58228 | G223: 0 | H223: 1 | I223: 200 | J223: 0 | K223: 0
A224: 3.1 | B224: Phí | D224: 0 | E224: 58228 | G224: 0 | H224: 1 | I224: 200 | J224: 0 | K224: 0
A225: 3.2 | B225: Lệ phí | D225: 0 | E225: 58228 | G225: 0 | H225: 1 | I225: 200 | J225: 0 | K225: 0
A226: 3.3 | B226: Chi phí khác | D226: 0 | E226: 58228 | G226: 0 | H226: 1 | I226: 200 | J226: 0 | K226: 0
A227: 4 | B227: Chuẩn bị, phục vụ việc kiểm tra, đánh giá của cơ quan có thẩm quyền (nếu có) | D227: 0 | E227: 58228 | G227: 0 | H227: 1 | I227: 200 | J227: 0 | K227: 0
A228: 5 | B228: Công việc khác (nếu có) | D228: 0 | E228: 58228 | G228: 0 | H228: 1 | I228: 200 | J228: 0 | K228: 0
A229: 6 | B229: Nhận kết quả | C229: Trực tiếp | D229: 1 | E229: 58228 | G229: 0 | H229: 1 | I229: 200 | J229: 58228 | K229: 11645600
... 142 more rows

Sheet Tổng hợp
A1: BẢNG TỔNG HỢP CHI PHÍ TUÂN THỦ THỦ TỤC HÀNH CHÍNH
A2: DỰ THẢO LUẬT AN NINH DỮ LIỆU (11 nhóm thủ tục hành chính)
A4: STT | B4: Tên thủ tục hành chính | C4: Chi phí tuân thủ dự kiến/năm (đồng) | D4: Tỷ trọng (%) | E4: Xếp hạng | F4: Ghi chú
A5: 1 | B5: Đăng ký, khai báo Danh mục dữ liệu quốc gia và thẩm định an ninh hệ thống, đầu tư, chuyển giao công nghệ | C5: ='Chi phí dự kiến'!K55 -> 9435425640 | D5: =C5/$C$16 -> 0.2357263093 | E5: =RANK(C5,$C$5:$C$15) -> 2
A6: 2 | B6: Báo cáo đánh giá rủi ro định kỳ, đột xuất và chứng nhận hợp quy sản phẩm, dịch vụ công nghệ an ninh dữ liệu | C6: ='Chi phí dự kiến'!K100 -> 2938062670 | D6: 0.07340195304 | E6: 3
A7: 3 | B7: Cấp phép giao dịch dữ liệu Cốt lõi, Quan trọng trong trường hợp đặc biệt | C7: ='Chi phí dự kiến'!K121 -> 124950698 | D7: 0.003121657465 | E7: 9
A8: 4 | B8: Đăng ký, cấp phép kinh doanh dịch vụ dữ liệu, bao gồm hoạt động môi giới, vận hành sàn giao dịch dữ liệu | C8: ='Chi phí dự kiến'!K167 -> 537070630 | D8: 0.01341769649 | E8: 7
A9: 5 | B9: Phê duyệt của Thủ tướng Chính phủ đối với trường hợp đặc biệt xử lý dữ liệu Cốt lõi | C9: ='Chi phí dự kiến'!K188 -> 12475349 | D9: 0.0003116730595 | E9: 11
A10: 6 | B10: Cấp phép tham gia cơ chế thử nghiệm có kiểm soát (Sandbox) | C10: ='Chi phí dự kiến'!K210 -> 550519380 | D10: 0.01375368813 | E10: 6
A11: 7 | B11: Thẩm định, cấp văn bản chấp thuận an ninh khi chuyển dữ liệu Quan trọng, Cốt lõi ra nước ngoài | C11: ='Chi phí dự kiến'!K298 -> 2761148990 | D11: 0.0689820985 | E11: 4
A12: 8 | B12: Cấp, công nhận chứng chỉ chuyên môn về an ninh dữ liệu | C12: ='Chi phí dự kiến'!K319 -> 22729767000 | D12: 0.5678603479 | E12: 1
A13: 9 | B13: Thẩm tra an ninh nhân sự nước ngoài tham gia dự án dữ liệu Cấp độ 3, Cấp độ 4 | C13: ='Chi phí dự kiến'!K341 -> 286772900 | D13: 0.007164479898 | E13: 8
A14: 10 | B14: Báo cáo, thông báo sự cố an ninh dữ liệu | C14: ='Chi phí dự kiến'!K363 -> 564811600 | D14: 0.01411075229 | E14: 5
A15: 11 | B15: Xác nhận đủ điều kiện an toàn để khôi phục kết nối hệ thống sau sự cố | C15: ='Chi phí dự kiến'!K385 -> 86031870 | D15: 0.002149343969 | E15: 10
A16: TỔNG CỘNG | C16: =SUM(C5:C15) -> 40027036727 | D16: 1
A18: Ghi chú: Thủ tục 8 (Cấp, công nhận chứng chỉ chuyên môn) chiếm tỷ trọng chi phí lớn nhất do áp dụng cho quy mô lớn nhân sự vận hành hệ thống Cấp độ 3, Cấp độ 4 trên toàn quốc; Thủ tục 1 (Thẩm định an ninh hệ thống, đầu tư) đứng thứ hai do chi phí tư vấn kỹ thuật cao. Đây là 02 thủ tục cần ưu tiên áp dụng phương án giảm chi phí tuân thủ (công nhận chứng chỉ quốc tế, lộ trình chuyển tiếp, cơ chế một cửa liên thông) đã đề xuất tại Bản đánh giá thủ tục hành chính.
